[Event "Late-Titled-Tuesday-Blitz-June-18-2024"]
[Site "Chess.com"]
[Date "2024.06.18"]
[Round "1"]
[White "SpeedofLight0"]
[Black "mightysmasher"]
[Result "1-0"]
[WhiteElo "3043"]
[BlackElo "2516"]
[TimeControl "180+1"]
[EndTime "14:07:47 PDT"]
[Termination "SpeedofLight0 won by checkmate"]

1. c4 {[%clk 0:03:00.9]} 1... e6 {[%clk 0:02:59.7]} 2. g3 {[%clk 0:02:59.6]}
2... d5 {[%clk 0:03:00]} 3. Bg2 {[%clk 0:03:00]} 3... Nf6 {[%clk 0:03:00.2]} 4.
Nf3 {[%clk 0:02:59.9]} 4... Be7 {[%clk 0:03:00.8]} 5. O-O {[%clk 0:02:59.9]}
5... O-O {[%clk 0:03:01.4]} 6. b3 {[%clk 0:03:00.6]} 6... c5 {[%clk 0:03:01.4]}
7. Bb2 {[%clk 0:02:59.8]} 7... Nc6 {[%clk 0:03:01.5]} 8. cxd5 {[%clk 0:02:58.5]}
8... exd5 {[%clk 0:03:01.3]} 9. d4 {[%clk 0:02:58.5]} 9... Be6 {[%clk
0:03:01.3]} 10. Nc3 {[%clk 0:02:56.6]} 10... Rc8 {[%clk 0:03:00]} 11. dxc5
{[%clk 0:02:55.9]} 11... Bxc5 {[%clk 0:02:59.7]} 12. Na4 {[%clk 0:02:56.1]}
12... Be7 {[%clk 0:02:58.2]} 13. Rc1 {[%clk 0:02:56.6]} 13... Ne4 {[%clk
0:02:38.3]} 14. Nd4 {[%clk 0:02:52.2]} 14... Nxd4 {[%clk 0:02:37.3]} 15. Bxd4
{[%clk 0:02:51.9]} 15... b5 {[%clk 0:02:32.6]} 16. Nc3 {[%clk 0:02:45.6]} 16...
Nxc3 {[%clk 0:02:28.1]} 17. Rxc3 {[%clk 0:02:43.6]} 17... Rxc3 {[%clk
0:02:26.8]} 18. Bxc3 {[%clk 0:02:44.5]} 18... Qc7 {[%clk 0:02:13.8]} 19. Qd3
{[%clk 0:02:39.7]} 19... Rc8 {[%clk 0:02:09.3]} 20. Ba1 {[%clk 0:02:02.8]} 20...
Qc2 {[%clk 0:01:26.9]} 21. Qd4 {[%clk 0:00:58.3]} 21... Bf6 {[%clk 0:01:25.1]}
22. Qxa7 {[%clk 0:00:58.1]} 22... Bxa1 {[%clk 0:01:18.9]} 23. Rxa1 {[%clk
0:00:59]} 23... Qxe2 {[%clk 0:01:15.9]} 24. Qd4 {[%clk 0:00:59]} 24... h6 {[%clk
0:00:51.4]} 25. Bf1 {[%clk 0:00:44.2]} 25... Qf3 {[%clk 0:00:32.2]} 26. Bxb5
{[%clk 0:00:41.5]} 26... Rc2 {[%clk 0:00:18.8]} 27. Bf1 {[%clk 0:00:38.9]} 27...
h5 {[%clk 0:00:17.3]} 28. a4 {[%clk 0:00:31.3]} 28... Qxb3 {[%clk 0:00:14.7]}
29. a5 {[%clk 0:00:30.2]} 29... Rc8 {[%clk 0:00:13.9]} 30. a6 {[%clk 0:00:30]}
30... h4 {[%clk 0:00:09.3]} 31. a7 {[%clk 0:00:27.9]} 31... Ra8 {[%clk
0:00:07.2]} 32. Qc5 {[%clk 0:00:27]} 32... hxg3 {[%clk 0:00:06.6]} 33. hxg3
{[%clk 0:00:27.9]} 33... d4 {[%clk 0:00:06.4]} 34. Bg2 {[%clk 0:00:26.9]} 34...
Rxa7 {[%clk 0:00:06.6]} 35. Qxa7 {[%clk 0:00:26.6]} 35... d3 {[%clk 0:00:05.9]}
36. Qe3 {[%clk 0:00:25.3]} 36... Qb2 {[%clk 0:00:05.3]} 37. Rd1 {[%clk
0:00:24.8]} 37... Qc2 {[%clk 0:00:05.5]} 38. Qxd3 {[%clk 0:00:24.7]} 38... Qxd3
{[%clk 0:00:05.2]} 39. Rxd3 {[%clk 0:00:25.6]} 39... g5 {[%clk 0:00:05.6]} 40.
Re3 {[%clk 0:00:25.8]} 40... Kg7 {[%clk 0:00:06]} 41. Bf1 {[%clk 0:00:25.9]}
41... Kf6 {[%clk 0:00:06.2]} 42. Kg2 {[%clk 0:00:25.5]} 42... g4 {[%clk
0:00:06.6]} 43. Be2 {[%clk 0:00:25.4]} 43... Kg5 {[%clk 0:00:06.5]} 44. f3
{[%clk 0:00:25.6]} 44... gxf3+ {[%clk 0:00:06.6]} 45. Bxf3 {[%clk 0:00:26.5]}
45... Bf5 {[%clk 0:00:06.3]} 46. Re5 {[%clk 0:00:26.4]} 46... f6 {[%clk
0:00:05.6]} 47. Ra5 {[%clk 0:00:27.3]} 47... Kg6 {[%clk 0:00:05.6]} 48. Kf2
{[%clk 0:00:27.5]} 48... Be6 {[%clk 0:00:04.6]} 49. Ke3 {[%clk 0:00:28]} 49...
Bg8 {[%clk 0:00:03.7]} 50. Kf4 {[%clk 0:00:28.9]} 50... Bf7 {[%clk 0:00:03.6]}
51. Bh5+ {[%clk 0:00:29]} 51... Kg7 {[%clk 0:00:03.4]} 52. Ra7 {[%clk
0:00:29.6]} 52... Kh6 {[%clk 0:00:03.5]} 53. Bxf7 {[%clk 0:00:29.9]} 53... Kg7
{[%clk 0:00:03.4]} 54. Kf5 {[%clk 0:00:29.8]} 54... Kh6 {[%clk 0:00:04.3]} 55.
g4 {[%clk 0:00:29.3]} 55... Kg7 {[%clk 0:00:04.2]} 56. Bg6+ {[%clk 0:00:29.7]}
56... Kg8 {[%clk 0:00:03.7]} 57. Kxf6 {[%clk 0:00:29.7]} 57... Kh8 {[%clk
0:00:03.3]} 58. Ra8# {[%clk 0:00:30.6]} 1-0

[Event "Late-Titled-Tuesday-Blitz-June-18-2024"]
[Site "Chess.com"]
[Date "2024.06.18"]
[Round "1"]
[White "Colombiano07"]
[Black "Skatchkov_V"]
[Result "0-1"]
[WhiteElo "2326"]
[BlackElo "2638"]
[TimeControl "180+1"]
[EndTime "14:07:49 PDT"]
[Termination "Skatchkov_V won by resignation"]

1. d4 {[%clk 0:03:00.6]} 1... g6 {[%clk 0:03:00.3]} 2. e4 {[%clk 0:02:58.1]}
2... Bg7 {[%clk 0:03:00.3]} 3. Nf3 {[%clk 0:02:59]} 3... d6 {[%clk 0:02:55.1]}
4. Nc3 {[%clk 0:02:58.3]} 4... c6 {[%clk 0:02:50.6]} 5. a4 {[%clk 0:02:57.5]}
5... Nd7 {[%clk 0:02:45.4]} 6. Be3 {[%clk 0:02:55.1]} 6... Qb6 {[%clk 0:02:36]}
7. Qd2 {[%clk 0:02:40.7]} 7... Ngf6 {[%clk 0:02:30.2]} 8. h3 {[%clk 0:02:40.1]}
8... d5 {[%clk 0:02:04.7]} 9. a5 {[%clk 0:02:38.6]} 9... Qxb2 {[%clk 0:01:56.5]}
10. Rb1 {[%clk 0:02:34.9]} 10... Qa3 {[%clk 0:01:56.7]} 11. Bd3 {[%clk
0:02:22.9]} 11... Qxa5 {[%clk 0:01:50.7]} 12. e5 {[%clk 0:02:20.3]} 12... Ng8
{[%clk 0:01:47.3]} 13. O-O {[%clk 0:02:19.5]} 13... e6 {[%clk 0:01:45.4]} 14.
Nb5 {[%clk 0:01:53.1]} 14... Qxd2 {[%clk 0:01:41.3]} 15. Nd6+ {[%clk 0:01:52.9]}
15... Kf8 {[%clk 0:01:37.5]} 16. Nxd2 {[%clk 0:01:53.8]} 16... b5 {[%clk
0:01:33.7]} 17. Ra1 {[%clk 0:01:36.2]} 17... a5 {[%clk 0:01:30.6]} 18. Nxc8
{[%clk 0:01:35.2]} 18... Rxc8 {[%clk 0:01:30.5]} 19. Rxa5 {[%clk 0:01:35.9]}
19... Ne7 {[%clk 0:01:26.8]} 20. Ra7 {[%clk 0:01:35.3]} 20... Nb6 {[%clk
0:01:25.3]} 21. Nb3 {[%clk 0:01:31]} 21... h5 {[%clk 0:01:17.2]} 22. Nc5 {[%clk
0:01:30.3]} 22... Bh6 {[%clk 0:01:16]} 23. Rb7 {[%clk 0:01:25.6]} 23... Nc4
{[%clk 0:01:06.1]} 24. Bxc4 {[%clk 0:01:25]} 24... dxc4 {[%clk 0:00:29.3]} 25.
Nd7+ {[%clk 0:01:18]} 25... Kg7 {[%clk 0:00:29]} 26. Nf6 {[%clk 0:01:18.9]}
26... Nd5 {[%clk 0:00:15.2]} 27. Nxd5 {[%clk 0:01:19.4]} 27... cxd5 {[%clk
0:00:11]} 28. Bxh6+ {[%clk 0:01:19.6]} 28... Rxh6 {[%clk 0:00:09.7]} 29. Ra1
{[%clk 0:01:20]} 29... Rhh8 {[%clk 0:00:05]} 30. Raa7 {[%clk 0:01:18.8]} 30...
Rhf8 {[%clk 0:00:05]} 31. Rxb5 {[%clk 0:01:19]} 31... Rb8 {[%clk 0:00:05.6]} 32.
Rbb7 {[%clk 0:01:18.7]} 32... Rxb7 {[%clk 0:00:05.7]} 33. Rxb7 {[%clk
0:01:19.6]} 33... Ra8 {[%clk 0:00:06.5]} 34. Rb2 {[%clk 0:00:54.2]} 34... Ra1+
{[%clk 0:00:06.1]} 35. Kh2 {[%clk 0:00:54.3]} 35... Rd1 {[%clk 0:00:07]} 36. c3
{[%clk 0:00:51.8]} 36... Rc1 {[%clk 0:00:06.8]} 37. Rd2 {[%clk 0:00:43.4]} 37...
Rxc3 {[%clk 0:00:07.1]} 38. Kg1 {[%clk 0:00:37.9]} 38... g5 {[%clk 0:00:07.2]}
39. Kf1 {[%clk 0:00:37.6]} 39... Kg6 {[%clk 0:00:07.3]} 40. Ke2 {[%clk 0:00:36]}
40... Kf5 {[%clk 0:00:07.1]} 41. f3 {[%clk 0:00:31.7]} 41... Kf4 {[%clk
0:00:07]} 42. Kf2 {[%clk 0:00:31.8]} 42... h4 {[%clk 0:00:04.6]} 43. Ra2 {[%clk
0:00:30.6]} 43... Rd3 {[%clk 0:00:04.4]} 44. Ra7 {[%clk 0:00:30.1]} 44... Rxd4
{[%clk 0:00:04.7]} 45. Rxf7+ {[%clk 0:00:28.9]} 45... Kxe5 {[%clk 0:00:05.2]}
46. Rg7 {[%clk 0:00:26.6]} 46... c3 {[%clk 0:00:04.5]} 47. Rxg5+ {[%clk
0:00:25.4]} 47... Kf6 {[%clk 0:00:04.9]} 48. Rg8 {[%clk 0:00:23.6]} 48... c2
{[%clk 0:00:05.2]} 49. Rc8 {[%clk 0:00:22.4]} 49... Rc4 {[%clk 0:00:05.7]} 0-1

[Event "Late-Titled-Tuesday-Blitz-June-18-2024"]
[Site "Chess.com"]
[Date "2024.06.18"]
[Round "1"]
[White "pompey831"]
[Black "TigrVShlyape"]
[Result "1/2-1/2"]
[WhiteElo "2518"]
[BlackElo "2996"]
[TimeControl "180+1"]
[EndTime "14:07:53 PDT"]
[Termination "Game drawn by agreement"]

1. d4 {[%clk 0:02:57.7]} 1... d5 {[%clk 0:02:59.3]} 2. c4 {[%clk 0:02:56.9]}
2... c6 {[%clk 0:02:59.4]} 3. Nf3 {[%clk 0:02:56]} 3... Nf6 {[%clk 0:02:59]} 4.
e3 {[%clk 0:02:55.3]} 4... g6 {[%clk 0:02:57.9]} 5. Nc3 {[%clk 0:02:54]} 5...
Bg7 {[%clk 0:02:58.2]} 6. Bd3 {[%clk 0:02:52.8]} 6... O-O {[%clk 0:02:58.1]} 7.
O-O {[%clk 0:02:51.8]} 7... a6 {[%clk 0:02:58.4]} 8. b3 {[%clk 0:02:50.2]} 8...
Bg4 {[%clk 0:02:57.2]} 9. Bb2 {[%clk 0:02:48]} 9... e6 {[%clk 0:02:56.8]} 10. h3
{[%clk 0:02:47]} 10... Bxf3 {[%clk 0:02:55.2]} 11. Qxf3 {[%clk 0:02:47.4]} 11...
Nbd7 {[%clk 0:02:55.5]} 12. Rfd1 {[%clk 0:02:46.7]} 12... Qb8 {[%clk 0:02:54.4]}
13. Bf1 {[%clk 0:02:45.2]} 13... Rd8 {[%clk 0:02:54.1]} 14. Rac1 {[%clk
0:02:44]} 14... Nb6 {[%clk 0:02:50.9]} 15. g3 {[%clk 0:02:41.4]} 15... Nc8
{[%clk 0:02:50.4]} 16. Bg2 {[%clk 0:02:35.8]} 16... Nd6 {[%clk 0:02:50.1]} 17.
Qe2 {[%clk 0:02:35.3]} 17... b5 {[%clk 0:02:43.9]} 18. cxd5 {[%clk 0:02:31.7]}
18... cxd5 {[%clk 0:02:41.2]} 19. Qe1 {[%clk 0:02:27.7]} 19... a5 {[%clk
0:02:40.5]} 20. Ne2 {[%clk 0:02:26.6]} 20... b4 {[%clk 0:02:36]} 21. Nf4 {[%clk
0:02:24]} 21... Nb5 {[%clk 0:02:24.5]} 22. Nd3 {[%clk 0:02:23.6]} 22... Ne4
{[%clk 0:02:23.9]} 23. Bxe4 {[%clk 0:02:21.3]} 23... dxe4 {[%clk 0:02:23.5]} 24.
Nc5 {[%clk 0:02:21.9]} 24... Nd6 {[%clk 0:02:08.5]} 25. Qf1 {[%clk 0:02:21.2]}
25... Ra7 {[%clk 0:02:06.3]} 26. Rc2 {[%clk 0:02:16.4]} 26... h5 {[%clk
0:01:57.1]} 27. Rcd2 {[%clk 0:02:11.9]} 27... Qa8 {[%clk 0:01:42.5]} 28. Ba1
{[%clk 0:02:02.2]} 28... Qd5 {[%clk 0:01:41.6]} 29. Na4 {[%clk 0:01:55.7]} 29...
Rc7 {[%clk 0:01:31.7]} 30. Rc1 {[%clk 0:01:54.3]} 30... Rdc8 {[%clk 0:01:26.8]}
31. Rdd1 {[%clk 0:01:51.4]} 31... Rxc1 {[%clk 0:01:14.6]} 32. Rxc1 {[%clk
0:01:50.9]} 32... Qb7 {[%clk 0:00:59.9]} 33. Rxc8+ {[%clk 0:01:48.7]} 33... Qxc8
{[%clk 0:00:59.7]} 34. Nc5 {[%clk 0:01:48.8]} 34... f5 {[%clk 0:00:55.4]} 35.
Bb2 {[%clk 0:01:45.8]} 35... Kf7 {[%clk 0:00:54.7]} 36. a3 {[%clk 0:01:44.6]}
36... bxa3 {[%clk 0:00:53.8]} 37. Bxa3 {[%clk 0:01:43.9]} 37... Qc6 {[%clk
0:00:53.3]} 38. h4 {[%clk 0:01:42.8]} 38... Bf6 {[%clk 0:00:49.8]} 39. Bc1
{[%clk 0:01:41.8]} 39... e5 {[%clk 0:00:42.3]} 40. Bb2 {[%clk 0:01:29.8]} 40...
exd4 {[%clk 0:00:41.5]} 41. exd4 {[%clk 0:01:28.1]} 41... Qb5 {[%clk 0:00:39.4]}
42. Qd1 {[%clk 0:01:22]} 42... Nb7 {[%clk 0:00:34.9]} 43. Ba3 {[%clk 0:01:13]}
43... Nxc5 {[%clk 0:00:31.6]} 44. Bxc5 {[%clk 0:01:10.2]} 44... Qd3 {[%clk
0:00:31.3]} 45. Qe1 {[%clk 0:00:54.4]} 45... Bxd4 {[%clk 0:00:30]} 46. Bxd4
{[%clk 0:00:53.1]} 46... Qxd4 {[%clk 0:00:30.3]} 47. Qxa5 {[%clk 0:00:52.1]}
47... Qd1+ {[%clk 0:00:30.4]} 48. Kg2 {[%clk 0:00:51.8]} 48... Qxb3 {[%clk
0:00:31]} 49. Qc7+ {[%clk 0:00:51.4]} 49... Kg8 {[%clk 0:00:30.5]} 50. Qd8+
{[%clk 0:00:49.1]} 50... Kg7 {[%clk 0:00:30.7]} 51. Qd4+ {[%clk 0:00:48.3]}
51... Kg8 {[%clk 0:00:28.8]} 52. Qd8+ {[%clk 0:00:47.8]} 52... Kg7 {[%clk
0:00:26.6]} 53. Qe7+ {[%clk 0:00:48.4]} 53... Qf7 {[%clk 0:00:25.8]} 54. Qe5+
{[%clk 0:00:48.4]} 54... Qf6 {[%clk 0:00:25.6]} 55. Qc7+ {[%clk 0:00:49]} 55...
Kh6 {[%clk 0:00:25.7]} 56. Qf4+ {[%clk 0:00:48.4]} 56... g5 {[%clk 0:00:22.8]}
57. hxg5+ {[%clk 0:00:48.3]} 57... Qxg5 {[%clk 0:00:23.3]} 58. Qd6+ {[%clk
0:00:48.5]} 58... Qg6 {[%clk 0:00:22.2]} 59. Qf4+ {[%clk 0:00:48.3]} 59... Kh7
{[%clk 0:00:21.8]} 60. Qc7+ {[%clk 0:00:48]} 60... Qg7 {[%clk 0:00:22.1]} 61.
Qf4 {[%clk 0:00:47.5]} 61... Qf6 {[%clk 0:00:22.2]} 62. Kh3 {[%clk 0:00:46.5]}
62... Kg6 {[%clk 0:00:21.9]} 63. Qb8 {[%clk 0:00:44.2]} 63... Qe6 {[%clk
0:00:22.1]} 64. Kg2 {[%clk 0:00:41.3]} 64... e3 {[%clk 0:00:18.1]} 65. Qa7
{[%clk 0:00:40.4]} 65... e2 {[%clk 0:00:17]} 1/2-1/2

[Event "Late-Titled-Tuesday-Blitz-June-18-2024"]
[Site "Chess.com"]
[Date "2024.06.18"]
[Round "1"]
[White "schondeln"]
[Black "Bykov_Egor"]
[Result "0-1"]
[WhiteElo "2353"]
[BlackElo "2657"]
[TimeControl "180+1"]
[EndTime "14:07:53 PDT"]
[Termination "Bykov_Egor won by resignation"]

1. e4 {[%clk 0:02:59.3]} 1... c6 {[%clk 0:02:58.4]} 2. Nc3 {[%clk 0:02:58.8]}
2... d5 {[%clk 0:02:57.7]} 3. Nf3 {[%clk 0:02:58.8]} 3... Bg4 {[%clk 0:02:55.4]}
4. h3 {[%clk 0:02:58.2]} 4... Bxf3 {[%clk 0:02:55.1]} 5. Qxf3 {[%clk 0:02:59.1]}
5... e6 {[%clk 0:02:55.1]} 6. Be2 {[%clk 0:02:58.7]} 6... Nd7 {[%clk 0:02:54.1]}
7. d4 {[%clk 0:02:52.1]} 7... dxe4 {[%clk 0:02:38.4]} 8. Nxe4 {[%clk 0:02:51.4]}
8... Ngf6 {[%clk 0:02:39]} 9. c3 {[%clk 0:02:48.8]} 9... Nxe4 {[%clk 0:02:35.5]}
10. Qxe4 {[%clk 0:02:49.7]} 10... Nf6 {[%clk 0:02:35.8]} 11. Qc2 {[%clk
0:02:44]} 11... Be7 {[%clk 0:02:33.6]} 12. O-O {[%clk 0:02:43.7]} 12... O-O
{[%clk 0:02:32.8]} 13. Bf3 {[%clk 0:02:42.4]} 13... Rc8 {[%clk 0:02:30.7]} 14.
Re1 {[%clk 0:02:35.4]} 14... Qb6 {[%clk 0:02:14.8]} 15. Bf4 {[%clk 0:02:20.5]}
15... c5 {[%clk 0:02:10.6]} 16. dxc5 {[%clk 0:02:13.6]} 16... Bxc5 {[%clk
0:02:09.1]} 17. Rad1 {[%clk 0:02:12.7]} 17... Rfd8 {[%clk 0:02:03.1]} 18. Bg5
{[%clk 0:01:59.3]} 18... Be7 {[%clk 0:01:48.7]} 19. a3 {[%clk 0:01:57.8]} 19...
h6 {[%clk 0:01:48.5]} 20. Bf4 {[%clk 0:01:53.7]} 20... a5 {[%clk 0:01:29]} 21.
Rxd8+ {[%clk 0:01:49.4]} 21... Rxd8 {[%clk 0:01:28.8]} 22. Rd1 {[%clk 0:01:50]}
22... Rxd1+ {[%clk 0:01:24.6]} 23. Bxd1 {[%clk 0:01:50.9]} 23... Nd5 {[%clk
0:01:20.8]} 24. Bc1 {[%clk 0:01:48.5]} 24... Qc5 {[%clk 0:00:59.9]} 25. Bf3
{[%clk 0:01:46.2]} 25... b5 {[%clk 0:00:59.3]} 26. Qd3 {[%clk 0:01:39]} 26...
Nb6 {[%clk 0:00:39.8]} 27. Be3 {[%clk 0:01:37.3]} 27... Qc4 {[%clk 0:00:40.3]}
28. Qd2 {[%clk 0:00:57.5]} 28... Qc7 {[%clk 0:00:27.2]} 29. Be2 {[%clk
0:00:54.5]} 29... Nc4 {[%clk 0:00:26.5]} 30. Bxc4 {[%clk 0:00:54.1]} 30... bxc4
{[%clk 0:00:27.4]} 31. Bd4 {[%clk 0:00:44.8]} 31... f5 {[%clk 0:00:25.6]} 32.
Qe2 {[%clk 0:00:43.9]} 32... Qc6 {[%clk 0:00:18.1]} 33. Qe5 {[%clk 0:00:41.8]}
33... Bf8 {[%clk 0:00:11.7]} 34. h4 {[%clk 0:00:36.1]} 34... a4 {[%clk 0:00:11]}
35. h5 {[%clk 0:00:35.7]} 35... Qd5 {[%clk 0:00:08.8]} 36. Qb8 {[%clk
0:00:35.5]} 36... Qc6 {[%clk 0:00:04]} 37. f3 {[%clk 0:00:27.4]} 37... Kf7
{[%clk 0:00:04.5]} 38. Qa7+ {[%clk 0:00:26.5]} 38... Be7 {[%clk 0:00:05.1]} 39.
Bxg7 {[%clk 0:00:22.5]} 39... Qc5+ {[%clk 0:00:02.3]} 40. Qxc5 {[%clk
0:00:21.5]} 40... Bxc5+ {[%clk 0:00:03.2]} 41. Bd4 {[%clk 0:00:21.9]} 41... Bd6
{[%clk 0:00:03.3]} 42. Be3 {[%clk 0:00:21.5]} 42... Kg7 {[%clk 0:00:03.2]} 43.
g3 {[%clk 0:00:21.4]} 43... Bxg3 {[%clk 0:00:02.5]} 44. Kg2 {[%clk 0:00:21.7]}
44... Bd6 {[%clk 0:00:03.1]} 45. Kf2 {[%clk 0:00:20.7]} 45... Bf8 {[%clk
0:00:03.7]} 46. Bf4 {[%clk 0:00:20.5]} 46... Kf6 {[%clk 0:00:04.3]} 47. Ke3
{[%clk 0:00:20.9]} 47... e5 {[%clk 0:00:04.9]} 48. Bh2 {[%clk 0:00:21.2]} 48...
Bc5+ {[%clk 0:00:05.6]} 49. Ke2 {[%clk 0:00:21.1]} 49... f4 {[%clk 0:00:06.1]}
50. Kf1 {[%clk 0:00:18.9]} 50... Kg5 {[%clk 0:00:06.7]} 51. Bg1 {[%clk
0:00:19.2]} 51... Bxg1 {[%clk 0:00:06.8]} 52. Kxg1 {[%clk 0:00:20.1]} 52... Kxh5
{[%clk 0:00:07.4]} 53. Kg2 {[%clk 0:00:21]} 53... Kg5 {[%clk 0:00:06.3]} 54. Kh2
{[%clk 0:00:21.9]} 54... Kf5 {[%clk 0:00:06.5]} 55. Kg2 {[%clk 0:00:22.8]} 55...
e4 {[%clk 0:00:07.1]} 56. Kh2 {[%clk 0:00:23.7]} 56... e3 {[%clk 0:00:07.4]} 57.
Kg2 {[%clk 0:00:24.6]} 57... h5 {[%clk 0:00:08]} 58. Kf1 {[%clk 0:00:25.3]}
58... h4 {[%clk 0:00:08.7]} 59. Ke2 {[%clk 0:00:26.2]} 59... h3 {[%clk
0:00:09.3]} 0-1

[Event "Late-Titled-Tuesday-Blitz-June-18-2024"]
[Site "Chess.com"]
[Date "2024.06.18"]
[Round "1"]
[White "Zhigalko_Sergei"]
[Black "Manukyan_Artak"]
[Result "1-0"]
[WhiteElo "2977"]
[BlackElo "2502"]
[TimeControl "180+1"]
[EndTime "14:07:54 PDT"]
[Termination "Zhigalko_Sergei won by checkmate"]

1. e4 {[%clk 0:03:00.9]} 1... c6 {[%clk 0:02:59.9]} 2. d4 {[%clk 0:03:00.8]}
2... d5 {[%clk 0:03:00.8]} 3. e5 {[%clk 0:03:01]} 3... Bf5 {[%clk 0:03:00.5]} 4.
Nf3 {[%clk 0:03:01.2]} 4... e6 {[%clk 0:03:00.8]} 5. Be2 {[%clk 0:03:01.3]} 5...
c5 {[%clk 0:03:01.4]} 6. Be3 {[%clk 0:02:58.7]} 6... Qb6 {[%clk 0:03:01.6]} 7.
Nc3 {[%clk 0:02:58.1]} 7... Qxb2 {[%clk 0:03:01.6]} 8. Qb1 {[%clk 0:02:57]} 8...
Qxb1+ {[%clk 0:02:54.8]} 9. Rxb1 {[%clk 0:02:56.6]} 9... Bxc2 {[%clk 0:02:54.3]}
10. Rxb7 {[%clk 0:02:55.7]} 10... c4 {[%clk 0:02:54.7]} 11. Nb5 {[%clk
0:02:34.7]} 11... Na6 {[%clk 0:02:53.4]} 12. O-O {[%clk 0:02:06.6]} 12... Nh6
{[%clk 0:02:43.5]} 13. Rc1 {[%clk 0:02:01.3]} 13... Bg6 {[%clk 0:02:39]} 14. Bd1
{[%clk 0:02:00.9]} 14... Be7 {[%clk 0:02:32.3]} 15. Ba4 {[%clk 0:01:57.9]} 15...
Kf8 {[%clk 0:02:27.4]} 16. Bd2 {[%clk 0:01:44.3]} 16... Nf5 {[%clk 0:02:09.3]}
17. g4 {[%clk 0:01:39.1]} 17... Nh4 {[%clk 0:02:06.1]} 18. Nxh4 {[%clk
0:01:36.7]} 18... Bxh4 {[%clk 0:02:04.8]} 19. Nd6 {[%clk 0:01:27.4]} 19... Be7
{[%clk 0:01:55.7]} 20. Bb5 {[%clk 0:01:25.4]} 20... Nb8 {[%clk 0:01:43.2]} 21.
Bb4 {[%clk 0:00:45.3]} 21... a5 {[%clk 0:01:37.7]} 22. Bc5 {[%clk 0:00:44.1]}
22... h5 {[%clk 0:01:31.1]} 23. g5 {[%clk 0:00:42.9]} 23... Na6 {[%clk 0:01:27]}
24. Bxa6 {[%clk 0:00:42.1]} 24... Kg8 {[%clk 0:01:22.8]} 25. Rxe7 {[%clk
0:00:32.6]} 25... Rxa6 {[%clk 0:01:23.1]} 26. a4 {[%clk 0:00:29]} 26... h4
{[%clk 0:01:17.7]} 27. f4 {[%clk 0:00:28.7]} 27... Kh7 {[%clk 0:01:12.4]} 28.
Rb7 {[%clk 0:00:28.6]} 28... Raa8 {[%clk 0:01:05.5]} 29. Kf2 {[%clk 0:00:28.7]}
29... Rhb8 {[%clk 0:01:01]} 30. Rb5 {[%clk 0:00:28.5]} 30... Bd3 {[%clk
0:00:55]} 31. Ke3 {[%clk 0:00:27.3]} 31... Kg6 {[%clk 0:00:51]} 32. Kd2 {[%clk
0:00:27.2]} 32... h3 {[%clk 0:00:46.8]} 33. Rg1 {[%clk 0:00:23.7]} 33... Rh8
{[%clk 0:00:39.1]} 34. Ke3 {[%clk 0:00:17]} 34... Bc2 {[%clk 0:00:34.8]} 35. Rb7
{[%clk 0:00:10.7]} 35... Bxa4 {[%clk 0:00:22.8]} 36. Rxf7 {[%clk 0:00:07.2]}
36... Rab8 {[%clk 0:00:22.8]} 37. f5+ {[%clk 0:00:06.6]} 37... exf5 {[%clk
0:00:21.2]} 38. Re7 {[%clk 0:00:04.3]} 38... Rb3+ {[%clk 0:00:18.9]} 39. Kf2
{[%clk 0:00:04]} 39... Rhb8 {[%clk 0:00:15]} 40. Re6+ {[%clk 0:00:03.4]} 40...
Kh7 {[%clk 0:00:15.3]} 41. g6+ {[%clk 0:00:03.9]} 41... Kh6 {[%clk 0:00:15.6]}
42. Nxf5+ {[%clk 0:00:03.8]} 42... Kh5 {[%clk 0:00:15.2]} 43. Nxg7+ {[%clk
0:00:04.3]} 43... Kh6 {[%clk 0:00:15.5]} 44. Nf5+ {[%clk 0:00:04.6]} 44... Kh5
{[%clk 0:00:15.6]} 45. g7 {[%clk 0:00:03.5]} 45... Rb2+ {[%clk 0:00:11.3]} 46.
Kf3 {[%clk 0:00:04]} 46... R8b3+ {[%clk 0:00:10.7]} 47. Ne3 {[%clk 0:00:04.4]}
47... Rg2 {[%clk 0:00:08.5]} 48. Rxg2 {[%clk 0:00:03.8]} 48... Rxe3+ {[%clk
0:00:08.9]} 49. Kxe3 {[%clk 0:00:03.7]} 49... hxg2 {[%clk 0:00:09.8]} 50. g8=Q
{[%clk 0:00:04.3]} 50... g1=Q+ {[%clk 0:00:10]} 51. Qxg1 {[%clk 0:00:05]} 51...
c3 {[%clk 0:00:10.1]} 52. Be7 {[%clk 0:00:05.2]} 52... Bc2 {[%clk 0:00:09.2]}
53. Qg5# {[%clk 0:00:06.1]} 1-0